Workbook

Sheet Modelo
B1: Análise da Deplepleção de Um Rio Pelo Bombeamento de Um Poço
B6: Parâmetros Para Modelagem - INSERIR DADOS
B7: Transmissividade (T) | E7: 1427 | F7: (m²/dia)
B8: S = Ss (armazenamento elástico).b + Porosidade Eficaz (Sy) | E8: 0.24
B9: Distância de Separação (L) | E9: 2000 | F9: (m)
B10: Permeab. do Aquitarde (K') | E10: 1 | F10: (m/dia)
B11: Largura do Rio Analisado (W) | E11: 20 | F11: (m)
B12: Espessura do Aquitarde (M) | E12: 50 | F12: (m)
D13: Volume Bombeado do Poço | E13: 1000 | F13: (l/s)
B14: Horas por Dia | E14: 18 | F14: (h)
B15: Dias por Período de Retorno | E15: 7 | F15: (dias)
B16: Período de Retorno | E16: 7 | F16: (dias)
B17: Tempo de Corte | E17: 180 | F17: (dias)
B18: Bombeamento Após o Corte | E18: 0 | F18: (l/s)
B19: Duração do Bombeamento | E19: 180 | F19: (dias)
B21: Parâmetros Calculados - CÁLCULO AUTOMÁTICO
D22: Condutividade do Leito da Drenagem (Lambda) | E22: =(E10*E11/E12) -> 0.4 | F22: (m/dia)
D23: Fator de Depleção da Drenagem (SDF) | E23: =_l^2*S/T -> 672.740014 | F23: (dias)
B24: Fator do Leito da Drenagem (SBF) | E24: =(Lambda*_l/T) -> 0.5606166783
B25: Taxa Média | E25: =Qmax*(Hrs/24)*(Dias/Retorno) -> 750 | F25: (l/s)
B27: Depleção na Drenagem - Resultado da Modelagem
B28: Depleção na Drenagem em % | E28: =(Qavg*Q_4(4*Time*T/(S*E9^2),Lambda*E9/T))/(Qmax/100) -> 1.118718079 | F28: %
B29: Depleção na Drenagem - Vazão | E29: =+Qmax*E28/100 -> 11.18718079 | F29: (l/s)
D33: 90.8 | E33: =+D34/D33 -> 0.75
D34: 68.1 | E34: =+D35/D33 -> 0.5356828194 | G34: 42 | H34: =+G34*E33 -> 31.5
D35: 48.64 | H35: =+G34*E34 -> 22.49867841

Sheet Calculos
A1: Tempo | B1: Hunt | C1: Atual | D1: Compensação Hunt | E1: Hunt Corrigido
A2: 0 | B2: 0 | C2: =IF(Lambda="",Calculos!#REF!,Calculos!B2) -> 0 | D2: 0 | E2: =IF(Lambda="",(#REF!-#REF!),(B2-D2)) -> 0
A3: =A2+1 -> 1 | B3: =Qavg*Q_4(4*A3*T/(S*_l^2),Lambda*_l/T) -> 2.34440778e-75 | C3: =IF(Lambda="",#REF!,B3) -> 2.34440778e-75 | D3: =IF(CutBackTime<A3,(Qavg-CutBackQ)*Q_4(4*(A3-CutBackTime)*T/(S*_l^2),Lambda*_l/T),0) -> 0 | E3: =IF(Lambda="",(#REF!-#REF!),(B3-D3)) -> 2.34440778e-75
A4: 2 | B4: 2.176033128e-38 | C4: =IF(Lambda="",#REF!,B4) -> 2.176033128e-38 | D4: 0 | E4: =IF(Lambda="",(#REF!-#REF!),(B4-D4)) -> 2.176033128e-38
A5: 3 | B5: 5.947548056e-26 | C5: =IF(Lambda="",#REF!,B5) -> 5.947548056e-26 | D5: 0 | E5: =IF(Lambda="",(#REF!-#REF!),(B5-D5)) -> 5.947548056e-26
A6: 4 | B6: 1.115396491e-19 | C6: =IF(Lambda="",#REF!,B6) -> 1.115396491e-19 | D6: 0 | E6: =IF(Lambda="",(#REF!-#REF!),(B6-D6)) -> 1.115396491e-19
A7: 5 | B7: 6.971248487e-16 | C7: =IF(Lambda="",#REF!,B7) -> 6.971248487e-16 | D7: 0 | E7: =IF(Lambda="",(#REF!-#REF!),(B7-D7)) -> 6.971248487e-16
A8: 6 | B8: 2.482172334e-13 | C8: =IF(Lambda="",#REF!,B8) -> 2.482172334e-13 | D8: 0 | E8: =IF(Lambda="",(#REF!-#REF!),(B8-D8)) -> 2.482172334e-13
A9: 7 | B9: 1.706296999e-11 | C9: =IF(Lambda="",#REF!,B9) -> 1.706296999e-11 | D9: 0 | E9: =IF(Lambda="",(#REF!-#REF!),(B9-D9)) -> 1.706296999e-11
A10: 8 | B10: 4.17680428e-10 | C10: =IF(Lambda="",#REF!,B10) -> 4.17680428e-10 | D10: 0 | E10: =IF(Lambda="",(#REF!-#REF!),(B10-D10)) -> 4.17680428e-10
A11: 9 | B11: 5.121079635e-09 | C11: =IF(Lambda="",#REF!,B11) -> 5.121079635e-09 | D11: 0 | E11: =IF(Lambda="",(#REF!-#REF!),(B11-D11)) -> 5.121079635e-09
A12: 10 | B12: 3.861673072e-08 | C12: =IF(Lambda="",#REF!,B12) -> 3.861673072e-08 | D12: 0 | E12: =IF(Lambda="",(#REF!-#REF!),(B12-D12)) -> 3.861673072e-08
A13: 11 | B13: 2.041744008e-07 | C13: =IF(Lambda="",#REF!,B13) -> 2.041744008e-07 | D13: 0 | E13: =IF(Lambda="",(#REF!-#REF!),(B13-D13)) -> 2.041744008e-07
A14: 12 | B14: 8.262202654e-07 | C14: =IF(Lambda="",#REF!,B14) -> 8.262202654e-07 | D14: 0 | E14: =IF(Lambda="",(#REF!-#REF!),(B14-D14)) -> 8.262202654e-07
A15: 13 | B15: 2.719470066e-06 | C15: =IF(Lambda="",#REF!,B15) -> 2.719470066e-06 | D15: 0 | E15: =IF(Lambda="",(#REF!-#REF!),(B15-D15)) -> 2.719470066e-06
A16: 14 | B16: 7.604962026e-06 | C16: =IF(Lambda="",#REF!,B16) -> 7.604962026e-06 | D16: 0 | E16: =IF(Lambda="",(#REF!-#REF!),(B16-D16)) -> 7.604962026e-06
A17: 15 | B17: 1.865764501e-05 | C17: =IF(Lambda="",#REF!,B17) -> 1.865764501e-05 | D17: 0 | E17: =IF(Lambda="",(#REF!-#REF!),(B17-D17)) -> 1.865764501e-05
A18: 16 | B18: 4.113729488e-05 | C18: =IF(Lambda="",#REF!,B18) -> 4.113729488e-05 | D18: 0 | E18: =IF(Lambda="",(#REF!-#REF!),(B18-D18)) -> 4.113729488e-05
A19: 17 | B19: 8.303568321e-05 | C19: =IF(Lambda="",#REF!,B19) -> 8.303568321e-05 | D19: 0 | E19: =IF(Lambda="",(#REF!-#REF!),(B19-D19)) -> 8.303568321e-05
A20: 18 | B20: 0.0001556711015 | C20: =IF(Lambda="",#REF!,B20) -> 0.0001556711015 | D20: 0 | E20: =IF(Lambda="",(#REF!-#REF!),(B20-D20)) -> 0.0001556711015
A21: 19 | B21: 0.0002741730096 | C21: =IF(Lambda="",#REF!,B21) -> 0.0002741730096 | D21: 0 | E21: =IF(Lambda="",(#REF!-#REF!),(B21-D21)) -> 0.0002741730096
A22: 20 | B22: 0.0004578185523 | C22: =IF(Lambda="",#REF!,B22) -> 0.0004578185523 | D22: 0 | E22: =IF(Lambda="",(#REF!-#REF!),(B22-D22)) -> 0.0004578185523
A23: 21 | B23: 0.0007302031998 | C23: =IF(Lambda="",#REF!,B23) -> 0.0007302031998 | D23: 0 | E23: =IF(Lambda="",(#REF!-#REF!),(B23-D23)) -> 0.0007302031998
A24: 22 | B24: 0.001119245848 | C24: =IF(Lambda="",#REF!,B24) -> 0.001119245848 | D24: 0 | E24: =IF(Lambda="",(#REF!-#REF!),(B24-D24)) -> 0.001119245848
A25: 23 | B25: 0.001657042375 | C25: =IF(Lambda="",#REF!,B25) -> 0.001657042375 | D25: 0 | E25: =IF(Lambda="",(#REF!-#REF!),(B25-D25)) -> 0.001657042375
A26: 24 | B26: 0.002379590448 | C26: =IF(Lambda="",#REF!,B26) -> 0.002379590448 | D26: 0 | E26: =IF(Lambda="",(#REF!-#REF!),(B26-D26)) -> 0.002379590448
A27: 25 | B27: 0.003326412774 | C27: =IF(Lambda="",#REF!,B27) -> 0.003326412774 | D27: 0 | E27: =IF(Lambda="",(#REF!-#REF!),(B27-D27)) -> 0.003326412774
A28: 26 | B28: 0.004540106963 | C28: =IF(Lambda="",#REF!,B28) -> 0.004540106963 | D28: 0 | E28: =IF(Lambda="",(#REF!-#REF!),(B28-D28)) -> 0.004540106963
A29: 27 | B29: 0.006065848685 | C29: =IF(Lambda="",#REF!,B29) -> 0.006065848685 | D29: 0 | E29: =IF(Lambda="",(#REF!-#REF!),(B29-D29)) -> 0.006065848685
A30: 28 | B30: 0.007950871839 | C30: =IF(Lambda="",#REF!,B30) -> 0.007950871839 | D30: 0 | E30: =IF(Lambda="",(#REF!-#REF!),(B30-D30)) -> 0.007950871839
A31: 29 | B31: 0.01024394572 | C31: =IF(Lambda="",#REF!,B31) -> 0.01024394572 | D31: 0 | E31: =IF(Lambda="",(#REF!-#REF!),(B31-D31)) -> 0.01024394572
A32: 30 | B32: 0.01299486521 | C32: =IF(Lambda="",#REF!,B32) -> 0.01299486521 | D32: 0 | E32: =IF(Lambda="",(#REF!-#REF!),(B32-D32)) -> 0.01299486521
A33: 31 | B33: 0.01625396615 | C33: =IF(Lambda="",#REF!,B33) -> 0.01625396615 | D33: 0 | E33: =IF(Lambda="",(#REF!-#REF!),(B33-D33)) -> 0.01625396615
A34: 32 | B34: 0.02007167472 | C34: =IF(Lambda="",#REF!,B34) -> 0.02007167472 | D34: 0 | E34: =IF(Lambda="",(#REF!-#REF!),(B34-D34)) -> 0.02007167472
A35: 33 | B35: 0.02449809653 | C35: =IF(Lambda="",#REF!,B35) -> 0.02449809653 | D35: 0 | E35: =IF(Lambda="",(#REF!-#REF!),(B35-D35)) -> 0.02449809653
A36: 34 | B36: 0.02958264873 | C36: =IF(Lambda="",#REF!,B36) -> 0.02958264873 | D36: 0 | E36: =IF(Lambda="",(#REF!-#REF!),(B36-D36)) -> 0.02958264873
A37: 35 | B37: 0.03537373636 | C37: =IF(Lambda="",#REF!,B37) -> 0.03537373636 | D37: 0 | E37: =IF(Lambda="",(#REF!-#REF!),(B37-D37)) -> 0.03537373636
A38: 36 | B38: 0.0419184728 | C38: =IF(Lambda="",#REF!,B38) -> 0.0419184728 | D38: 0 | E38: =IF(Lambda="",(#REF!-#REF!),(B38-D38)) -> 0.0419184728
A39: 37 | B39: 0.04926244279 | C39: =IF(Lambda="",#REF!,B39) -> 0.04926244279 | D39: 0 | E39: =IF(Lambda="",(#REF!-#REF!),(B39-D39)) -> 0.04926244279
A40: 38 | B40: 0.05744950589 | C40: =IF(Lambda="",#REF!,B40) -> 0.05744950589 | D40: 0 | E40: =IF(Lambda="",(#REF!-#REF!),(B40-D40)) -> 0.05744950589
A41: 39 | B41: 0.0665216375 | C41: =IF(Lambda="",#REF!,B41) -> 0.0665216375 | D41: 0 | E41: =IF(Lambda="",(#REF!-#REF!),(B41-D41)) -> 0.0665216375
A42: 40 | B42: 0.07651880449 | C42: =IF(Lambda="",#REF!,B42) -> 0.07651880449 | D42: 0 | E42: =IF(Lambda="",(#REF!-#REF!),(B42-D42)) -> 0.07651880449
A43: 41 | B43: 0.08747887208 | C43: =IF(Lambda="",#REF!,B43) -> 0.08747887208 | D43: 0 | E43: =IF(Lambda="",(#REF!-#REF!),(B43-D43)) -> 0.08747887208
A44: 42 | B44: 0.09943753865 | C44: =IF(Lambda="",#REF!,B44) -> 0.09943753865 | D44: 0 | E44: =IF(Lambda="",(#REF!-#REF!),(B44-D44)) -> 0.09943753865
A45: 43 | B45: 0.1124282955 | C45: =IF(Lambda="",#REF!,B45) -> 0.1124282955 | D45: 0 | E45: =IF(Lambda="",(#REF!-#REF!),(B45-D45)) -> 0.1124282955
A46: 44 | B46: 0.1264824081 | C46: =IF(Lambda="",#REF!,B46) -> 0.1264824081 | D46: 0 | E46: =IF(Lambda="",(#REF!-#REF!),(B46-D46)) -> 0.1264824081
A47: 45 | B47: 0.1416289164 | C47: =IF(Lambda="",#REF!,B47) -> 0.1416289164 | D47: 0 | E47: =IF(Lambda="",(#REF!-#REF!),(B47-D47)) -> 0.1416289164
A48: 46 | B48: 0.1578946513 | C48: =IF(Lambda="",#REF!,B48) -> 0.1578946513 | D48: 0 | E48: =IF(Lambda="",(#REF!-#REF!),(B48-D48)) -> 0.1578946513
A49: 47 | B49: 0.1753042642 | C49: =IF(Lambda="",#REF!,B49) -> 0.1753042642 | D49: 0 | E49: =IF(Lambda="",(#REF!-#REF!),(B49-D49)) -> 0.1753042642
A50: 48 | B50: 0.1938802692 | C50: =IF(Lambda="",#REF!,B50) -> 0.1938802692 | D50: 0 | E50: =IF(Lambda="",(#REF!-#REF!),(B50-D50)) -> 0.1938802692
A51: 49 | B51: 0.2136430931 | C51: =IF(Lambda="",#REF!,B51) -> 0.2136430931 | D51: 0 | E51: =IF(Lambda="",(#REF!-#REF!),(B51-D51)) -> 0.2136430931
A52: 50 | B52: 0.2346111349 | C52: =IF(Lambda="",#REF!,B52) -> 0.2346111349 | D52: 0 | E52: =IF(Lambda="",(#REF!-#REF!),(B52-D52)) -> 0.2346111349
A53: 51 | B53: 0.2568008296 | C53: =IF(Lambda="",#REF!,B53) -> 0.2568008296 | D53: 0 | E53: =IF(Lambda="",(#REF!-#REF!),(B53-D53)) -> 0.2568008296
A54: 52 | B54: 0.2802267181 | C54: =IF(Lambda="",#REF!,B54) -> 0.2802267181 | D54: 0 | E54: =IF(Lambda="",(#REF!-#REF!),(B54-D54)) -> 0.2802267181
A55: 53 | B55: 0.3049015192 | C55: =IF(Lambda="",#REF!,B55) -> 0.3049015192 | D55: 0 | E55: =IF(Lambda="",(#REF!-#REF!),(B55-D55)) -> 0.3049015192
A56: 54 | B56: 0.3308362054 | C56: =IF(Lambda="",#REF!,B56) -> 0.3308362054 | D56: 0 | E56: =IF(Lambda="",(#REF!-#REF!),(B56-D56)) -> 0.3308362054
A57: 55 | B57: 0.3580400789 | C57: =IF(Lambda="",#REF!,B57) -> 0.3580400789 | D57: 0 | E57: =IF(Lambda="",(#REF!-#REF!),(B57-D57)) -> 0.3580400789
A58: 56 | B58: 0.3865208493 | C58: =IF(Lambda="",#REF!,B58) -> 0.3865208493 | D58: 0 | E58: =IF(Lambda="",(#REF!-#REF!),(B58-D58)) -> 0.3865208493
A59: 57 | B59: 0.4162847102 | C59: =IF(Lambda="",#REF!,B59) -> 0.4162847102 | D59: 0 | E59: =IF(Lambda="",(#REF!-#REF!),(B59-D59)) -> 0.4162847102
A60: 58 | B60: 0.447336417 | C60: =IF(Lambda="",#REF!,B60) -> 0.447336417 | D60: 0 | E60: =IF(Lambda="",(#REF!-#REF!),(B60-D60)) -> 0.447336417
A61: 59 | B61: 0.4796793614 | C61: =IF(Lambda="",#REF!,B61) -> 0.4796793614 | D61: 0 | E61: =IF(Lambda="",(#REF!-#REF!),(B61-D61)) -> 0.4796793614
A62: 60 | B62: 0.5133156469 | C62: =IF(Lambda="",#REF!,B62) -> 0.5133156469 | D62: 0 | E62: =IF(Lambda="",(#REF!-#REF!),(B62-D62)) -> 0.5133156469
A63: 61 | B63: 0.548246161 | C63: =IF(Lambda="",#REF!,B63) -> 0.548246161 | D63: 0 | E63: =IF(Lambda="",(#REF!-#REF!),(B63-D63)) -> 0.548246161
A64: 62 | B64: 0.5844706459 | C64: =IF(Lambda="",#REF!,B64) -> 0.5844706459 | D64: 0 | E64: =IF(Lambda="",(#REF!-#REF!),(B64-D64)) -> 0.5844706459
A65: 63 | B65: 0.6219877675 | C65: =IF(Lambda="",#REF!,B65) -> 0.6219877675 | D65: 0 | E65: =IF(Lambda="",(#REF!-#REF!),(B65-D65)) -> 0.6219877675
A66: 64 | B66: 0.6607951817 | C66: =IF(Lambda="",#REF!,B66) -> 0.6607951817 | D66: 0 | E66: =IF(Lambda="",(#REF!-#REF!),(B66-D66)) -> 0.6607951817
A67: =A66+1 -> 65 | B67: =Qavg*Q_4(4*A67*T/(S*_l^2),Lambda*_l/T) -> 0.7008895986 | C67: =IF(Lambda="",#REF!,B67) -> 0.7008895986 | D67: =IF(CutBackTime<A67,(Qavg-CutBackQ)*Q_4(4*(A67-CutBackTime)*T/(S*_l^2),Lambda*_l/T),0) -> 0 | E67: =IF(Lambda="",(#REF!-#REF!),(B67-D67)) -> 0.7008895986
A68: 66 | B68: 0.7422668437 | C68: =IF(Lambda="",#REF!,B68) -> 0.7422668437 | D68: 0 | E68: =IF(Lambda="",(#REF!-#REF!),(B68-D68)) -> 0.7422668437
A69: 67 | B69: 0.7849219174 | C69: =IF(Lambda="",#REF!,B69) -> 0.7849219174 | D69: 0 | E69: =IF(Lambda="",(#REF!-#REF!),(B69-D69)) -> 0.7849219174
A70: 68 | B70: 0.8288490519 | C70: =IF(Lambda="",#REF!,B70) -> 0.8288490519 | D70: 0 | E70: =IF(Lambda="",(#REF!-#REF!),(B70-D70)) -> 0.8288490519
A71: 69 | B71: 0.8740417646 | C71: =IF(Lambda="",#REF!,B71) -> 0.8740417646 | D71: 0 | E71: =IF(Lambda="",(#REF!-#REF!),(B71-D71)) -> 0.8740417646
A72: 70 | B72: 0.9204929104 | C72: =IF(Lambda="",#REF!,B72) -> 0.9204929104 | D72: 0 | E72: =IF(Lambda="",(#REF!-#REF!),(B72-D72)) -> 0.9204929104
A73: 71 | B73: 0.9681947307 | C73: =IF(Lambda="",#REF!,B73) -> 0.9681947307 | D73: 0 | E73: =IF(Lambda="",(#REF!-#REF!),(B73-D73)) -> 0.9681947307
A74: 72 | B74: 1.0171389 | C74: =IF(Lambda="",#REF!,B74) -> 1.0171389 | D74: 0 | E74: =IF(Lambda="",(#REF!-#REF!),(B74-D74)) -> 1.0171389
A75: 73 | B75: 1.067316572 | C75: =IF(Lambda="",#REF!,B75) -> 1.067316572 | D75: 0 | E75: =IF(Lambda="",(#REF!-#REF!),(B75-D75)) -> 1.067316572
A76: 74 | B76: 1.118718419 | C76: =IF(Lambda="",#REF!,B76) -> 1.118718419 | D76: 0 | E76: =IF(Lambda="",(#REF!-#REF!),(B76-D76)) -> 1.118718419
A77: 75 | B77: 1.171334674 | C77: =IF(Lambda="",#REF!,B77) -> 1.171334674 | D77: 0 | E77: =IF(Lambda="",(#REF!-#REF!),(B77-D77)) -> 1.171334674
A78: 76 | B78: 1.225155168 | C78: =IF(Lambda="",#REF!,B78) -> 1.225155168 | D78: 0 | E78: =IF(Lambda="",(#REF!-#REF!),(B78-D78)) -> 1.225155168
A79: 77 | B79: 1.280169366 | C79: =IF(Lambda="",#REF!,B79) -> 1.280169366 | D79: 0 | E79: =IF(Lambda="",(#REF!-#REF!),(B79-D79)) -> 1.280169366
A80: 78 | B80: 1.3363664 | C80: =IF(Lambda="",#REF!,B80) -> 1.3363664 | D80: 0 | E80: =IF(Lambda="",(#REF!-#REF!),(B80-D80)) -> 1.3363664
A81: 79 | B81: 1.393735103 | C81: =IF(Lambda="",#REF!,B81) -> 1.393735103 | D81: 0 | E81: =IF(Lambda="",(#REF!-#REF!),(B81-D81)) -> 1.393735103
A82: 80 | B82: 1.452264037 | C82: =IF(Lambda="",#REF!,B82) -> 1.452264037 | D82: 0 | E82: =IF(Lambda="",(#REF!-#REF!),(B82-D82)) -> 1.452264037
A83: 81 | B83: 1.511941521 | C83: =IF(Lambda="",#REF!,B83) -> 1.511941521 | D83: 0 | E83: =IF(Lambda="",(#REF!-#REF!),(B83-D83)) -> 1.511941521
A84: 82 | B84: 1.572755662 | C84: =IF(Lambda="",#REF!,B84) -> 1.572755662 | D84: 0 | E84: =IF(Lambda="",(#REF!-#REF!),(B84-D84)) -> 1.572755662
A85: 83 | B85: 1.634694373 | C85: =IF(Lambda="",#REF!,B85) -> 1.634694373 | D85: 0 | E85: =IF(Lambda="",(#REF!-#REF!),(B85-D85)) -> 1.634694373
A86: 84 | B86: 1.697745404 | C86: =IF(Lambda="",#REF!,B86) -> 1.697745404 | D86: 0 | E86: =IF(Lambda="",(#REF!-#REF!),(B86-D86)) -> 1.697745404
A87: 85 | B87: 1.761896357 | C87: =IF(Lambda="",#REF!,B87) -> 1.761896357 | D87: 0 | E87: =IF(Lambda="",(#REF!-#REF!),(B87-D87)) -> 1.761896357
A88: 86 | B88: 1.827134715 | C88: =IF(Lambda="",#REF!,B88) -> 1.827134715 | D88: 0 | E88: =IF(Lambda="",(#REF!-#REF!),(B88-D88)) -> 1.827134715
A89: 87 | B89: 1.893447853 | C89: =IF(Lambda="",#REF!,B89) -> 1.893447853 | D89: 0 | E89: =IF(Lambda="",(#REF!-#REF!),(B89-D89)) -> 1.893447853
A90: 88 | B90: 1.960823061 | C90: =IF(Lambda="",#REF!,B90) -> 1.960823061 | D90: 0 | E90: =IF(Lambda="",(#REF!-#REF!),(B90-D90)) -> 1.960823061
A91: 89 | B91: 2.029247562 | C91: =IF(Lambda="",#REF!,B91) -> 2.029247562 | D91: 0 | E91: =IF(Lambda="",(#REF!-#REF!),(B91-D91)) -> 2.029247562
A92: 90 | B92: 2.098708523 | C92: =IF(Lambda="",#REF!,B92) -> 2.098708523 | D92: 0 | E92: =IF(Lambda="",(#REF!-#REF!),(B92-D92)) -> 2.098708523
A93: 91 | B93: 2.169193077 | C93: =IF(Lambda="",#REF!,B93) -> 2.169193077 | D93: 0 | E93: =IF(Lambda="",(#REF!-#REF!),(B93-D93)) -> 2.169193077
A94: 92 | B94: 2.240688328 | C94: =IF(Lambda="",#REF!,B94) -> 2.240688328 | D94: 0 | E94: =IF(Lambda="",(#REF!-#REF!),(B94-D94)) -> 2.240688328
A95: 93 | B95: 2.313181372 | C95: =IF(Lambda="",#REF!,B95) -> 2.313181372 | D95: 0 | E95: =IF(Lambda="",(#REF!-#REF!),(B95-D95)) -> 2.313181372
A96: 94 | B96: 2.386659306 | C96: =IF(Lambda="",#REF!,B96) -> 2.386659306 | D96: 0 | E96: =IF(Lambda="",(#REF!-#REF!),(B96-D96)) -> 2.386659306
A97: 95 | B97: 2.461109236 | C97: =IF(Lambda="",#REF!,B97) -> 2.461109236 | D97: 0 | E97: =IF(Lambda="",(#REF!-#REF!),(B97-D97)) -> 2.461109236
A98: 96 | B98: 2.536518295 | C98: =IF(Lambda="",#REF!,B98) -> 2.536518295 | D98: 0 | E98: =IF(Lambda="",(#REF!-#REF!),(B98-D98)) -> 2.536518295
A99: 97 | B99: 2.612873643 | C99: =IF(Lambda="",#REF!,B99) -> 2.612873643 | D99: 0 | E99: =IF(Lambda="",(#REF!-#REF!),(B99-D99)) -> 2.612873643
A100: 98 | B100: 2.690162485 | C100: =IF(Lambda="",#REF!,B100) -> 2.690162485 | D100: 0 | E100: =IF(Lambda="",(#REF!-#REF!),(B100-D100)) -> 2.690162485
A101: 99 | B101: 2.768372073 | C101: =IF(Lambda="",#REF!,B101) -> 2.768372073 | D101: 0 | E101: =IF(Lambda="",(#REF!-#REF!),(B101-D101)) -> 2.768372073
A102: 100 | B102: 2.847489716 | C102: =IF(Lambda="",#REF!,B102) -> 2.847489716 | D102: 0 | E102: =IF(Lambda="",(#REF!-#REF!),(B102-D102)) -> 2.847489716
A103: 101 | B103: 2.927502789 | C103: =IF(Lambda="",#REF!,B103) -> 2.927502789 | D103: 0 | E103: =IF(Lambda="",(#REF!-#REF!),(B103-D103)) -> 2.927502789
A104: 102 | B104: 3.008398734 | C104: =IF(Lambda="",#REF!,B104) -> 3.008398734 | D104: 0 | E104: =IF(Lambda="",(#REF!-#REF!),(B104-D104)) -> 3.008398734
A105: 103 | B105: 3.090165073 | C105: =IF(Lambda="",#REF!,B105) -> 3.090165073 | D105: 0 | E105: =IF(Lambda="",(#REF!-#REF!),(B105-D105)) -> 3.090165073
A106: 104 | B106: 3.172789408 | C106: =IF(Lambda="",#REF!,B106) -> 3.172789408 | D106: 0 | E106: =IF(Lambda="",(#REF!-#REF!),(B106-D106)) -> 3.172789408
A107: 105 | B107: 3.256259427 | C107: =IF(Lambda="",#REF!,B107) -> 3.256259427 | D107: 0 | E107: =IF(Lambda="",(#REF!-#REF!),(B107-D107)) -> 3.256259427
A108: 106 | B108: 3.340562913 | C108: =IF(Lambda="",#REF!,B108) -> 3.340562913 | D108: 0 | E108: =IF(Lambda="",(#REF!-#REF!),(B108-D108)) -> 3.340562913
A109: 107 | B109: 3.42568774 | C109: =IF(Lambda="",#REF!,B109) -> 3.42568774 | D109: 0 | E109: =IF(Lambda="",(#REF!-#REF!),(B109-D109)) -> 3.42568774
A110: 108 | B110: 3.511621886 | C110: =IF(Lambda="",#REF!,B110) -> 3.511621886 | D110: 0 | E110: =IF(Lambda="",(#REF!-#REF!),(B110-D110)) -> 3.511621886
A111: 109 | B111: 3.598353429 | C111: =IF(Lambda="",#REF!,B111) -> 3.598353429 | D111: 0 | E111: =IF(Lambda="",(#REF!-#REF!),(B111-D111)) -> 3.598353429
A112: 110 | B112: 3.685870553 | C112: =IF(Lambda="",#REF!,B112) -> 3.685870553 | D112: 0 | E112: =IF(Lambda="",(#REF!-#REF!),(B112-D112)) -> 3.685870553
A113: 111 | B113: 3.774161552 | C113: =IF(Lambda="",#REF!,B113) -> 3.774161552 | D113: 0 | E113: =IF(Lambda="",(#REF!-#REF!),(B113-D113)) -> 3.774161552
A114: 112 | B114: 3.863214832 | C114: =IF(Lambda="",#REF!,B114) -> 3.863214832 | D114: 0 | E114: =IF(Lambda="",(#REF!-#REF!),(B114-D114)) -> 3.863214832
A115: 113 | B115: 3.95301891 | C115: =IF(Lambda="",#REF!,B115) -> 3.95301891 | D115: 0 | E115: =IF(Lambda="",(#REF!-#REF!),(B115-D115)) -> 3.95301891
A116: 114 | B116: 4.04356242 | C116: =IF(Lambda="",#REF!,B116) -> 4.04356242 | D116: 0 | E116: =IF(Lambda="",(#REF!-#REF!),(B116-D116)) -> 4.04356242
A117: 115 | B117: 4.134834113 | C117: =IF(Lambda="",#REF!,B117) -> 4.134834113 | D117: 0 | E117: =IF(Lambda="",(#REF!-#REF!),(B117-D117)) -> 4.134834113
A118: 116 | B118: 4.226822858 | C118: =IF(Lambda="",#REF!,B118) -> 4.226822858 | D118: 0 | E118: =IF(Lambda="",(#REF!-#REF!),(B118-D118)) -> 4.226822858
A119: 117 | B119: 4.319517645 | C119: =IF(Lambda="",#REF!,B119) -> 4.319517645 | D119: 0 | E119: =IF(Lambda="",(#REF!-#REF!),(B119-D119)) -> 4.319517645
A120: 118 | B120: 4.412907582 | C120: =IF(Lambda="",#REF!,B120) -> 4.412907582 | D120: 0 | E120: =IF(Lambda="",(#REF!-#REF!),(B120-D120)) -> 4.412907582
A121: 119 | B121: 4.506981903 | C121: =IF(Lambda="",#REF!,B121) -> 4.506981903 | D121: 0 | E121: =IF(Lambda="",(#REF!-#REF!),(B121-D121)) -> 4.506981903
A122: 120 | B122: 4.601729961 | C122: =IF(Lambda="",#REF!,B122) -> 4.601729961 | D122: 0 | E122: =IF(Lambda="",(#REF!-#REF!),(B122-D122)) -> 4.601729961
A123: 121 | B123: 4.697141233 | C123: =IF(Lambda="",#REF!,B123) -> 4.697141233 | D123: 0 | E123: =IF(Lambda="",(#REF!-#REF!),(B123-D123)) -> 4.697141233
A124: 122 | B124: 4.793205319 | C124: =IF(Lambda="",#REF!,B124) -> 4.793205319 | D124: 0 | E124: =IF(Lambda="",(#REF!-#REF!),(B124-D124)) -> 4.793205319
A125: 123 | B125: 4.889911945 | C125: =IF(Lambda="",#REF!,B125) -> 4.889911945 | D125: 0 | E125: =IF(Lambda="",(#REF!-#REF!),(B125-D125)) -> 4.889911945
A126: 124 | B126: 4.987250958 | C126: =IF(Lambda="",#REF!,B126) -> 4.987250958 | D126: 0 | E126: =IF(Lambda="",(#REF!-#REF!),(B126-D126)) -> 4.987250958
A127: 125 | B127: 5.085212329 | C127: =IF(Lambda="",#REF!,B127) -> 5.085212329 | D127: 0 | E127: =IF(Lambda="",(#REF!-#REF!),(B127-D127)) -> 5.085212329
A128: 126 | B128: 5.183786154 | C128: =IF(Lambda="",#REF!,B128) -> 5.183786154 | D128: 0 | E128: =IF(Lambda="",(#REF!-#REF!),(B128-D128)) -> 5.183786154
A129: 127 | B129: 5.282962652 | C129: =IF(Lambda="",#REF!,B129) -> 5.282962652 | D129: 0 | E129: =IF(Lambda="",(#REF!-#REF!),(B129-D129)) -> 5.282962652
A130: 128 | B130: 5.382732163 | C130: =IF(Lambda="",#REF!,B130) -> 5.382732163 | D130: 0 | E130: =IF(Lambda="",(#REF!-#REF!),(B130-D130)) -> 5.382732163
A131: =A130+1 -> 129 | B131: =Qavg*Q_4(4*A131*T/(S*_l^2),Lambda*_l/T) -> 5.483085153 | C131: =IF(Lambda="",#REF!,B131) -> 5.483085153 | D131: =IF(CutBackTime<A131,(Qavg-CutBackQ)*Q_4(4*(A131-CutBackTime)*T/(S*_l^2),Lambda*_l/T),0) -> 0 | E131: =IF(Lambda="",(#REF!-#REF!),(B131-D131)) -> 5.483085153
A132: 130 | B132: 5.584012208 | C132: =IF(Lambda="",#REF!,B132) -> 5.584012208 | D132: 0 | E132: =IF(Lambda="",(#REF!-#REF!),(B132-D132)) -> 5.584012208
A133: 131 | B133: 5.685504036 | C133: =IF(Lambda="",#REF!,B133) -> 5.685504036 | D133: 0 | E133: =IF(Lambda="",(#REF!-#REF!),(B133-D133)) -> 5.685504036
A134: 132 | B134: 5.787551467 | C134: =IF(Lambda="",#REF!,B134) -> 5.787551467 | D134: 0 | E134: =IF(Lambda="",(#REF!-#REF!),(B134-D134)) -> 5.787551467
A135: 133 | B135: 5.890145451 | C135: =IF(Lambda="",#REF!,B135) -> 5.890145451 | D135: 0 | E135: =IF(Lambda="",(#REF!-#REF!),(B135-D135)) -> 5.890145451
A136: 134 | B136: 5.993277055 | C136: =IF(Lambda="",#REF!,B136) -> 5.993277055 | D136: 0 | E136: =IF(Lambda="",(#REF!-#REF!),(B136-D136)) -> 5.993277055
A137: 135 | B137: 6.096937468 | C137: =IF(Lambda="",#REF!,B137) -> 6.096937468 | D137: 0 | E137: =IF(Lambda="",(#REF!-#REF!),(B137-D137)) -> 6.096937468
A138: 136 | B138: 6.201117996 | C138: =IF(Lambda="",#REF!,B138) -> 6.201117996 | D138: 0 | E138: =IF(Lambda="",(#REF!-#REF!),(B138-D138)) -> 6.201117996
A139: 137 | B139: 6.305810062 | C139: =IF(Lambda="",#REF!,B139) -> 6.305810062 | D139: 0 | E139: =IF(Lambda="",(#REF!-#REF!),(B139-D139)) -> 6.305810062
A140: 138 | B140: 6.411005204 | C140: =IF(Lambda="",#REF!,B140) -> 6.411005204 | D140: 0 | E140: =IF(Lambda="",(#REF!-#REF!),(B140-D140)) -> 6.411005204
A141: 139 | B141: 6.516695076 | C141: =IF(Lambda="",#REF!,B141) -> 6.516695076 | D141: 0 | E141: =IF(Lambda="",(#REF!-#REF!),(B141-D141)) -> 6.516695076
A142: 140 | B142: 6.622871445 | C142: =IF(Lambda="",#REF!,B142) -> 6.622871445 | D142: 0 | E142: =IF(Lambda="",(#REF!-#REF!),(B142-D142)) -> 6.622871445
A143: 141 | B143: 6.729526194 | C143: =IF(Lambda="",#REF!,B143) -> 6.729526194 | D143: 0 | E143: =IF(Lambda="",(#REF!-#REF!),(B143-D143)) -> 6.729526194
A144: 142 | B144: 6.836651313 | C144: =IF(Lambda="",#REF!,B144) -> 6.836651313 | D144: 0 | E144: =IF(Lambda="",(#REF!-#REF!),(B144-D144)) -> 6.836651313
A145: 143 | B145: 6.944238908 | C145: =IF(Lambda="",#REF!,B145) -> 6.944238908 | D145: 0 | E145: =IF(Lambda="",(#REF!-#REF!),(B145-D145)) -> 6.944238908
A146: 144 | B146: 7.05228119 | C146: =IF(Lambda="",#REF!,B146) -> 7.05228119 | D146: 0 | E146: =IF(Lambda="",(#REF!-#REF!),(B146-D146)) -> 7.05228119
A147: 145 | B147: 7.160770482 | C147: =IF(Lambda="",#REF!,B147) -> 7.160770482 | D147: 0 | E147: =IF(Lambda="",(#REF!-#REF!),(B147-D147)) -> 7.160770482
A148: 146 | B148: 7.269699214 | C148: =IF(Lambda="",#REF!,B148) -> 7.269699214 | D148: 0 | E148: =IF(Lambda="",(#REF!-#REF!),(B148-D148)) -> 7.269699214
A149: 147 | B149: 7.37905992 | C149: =IF(Lambda="",#REF!,B149) -> 7.37905992 | D149: 0 | E149: =IF(Lambda="",(#REF!-#REF!),(B149-D149)) -> 7.37905992
A150: 148 | B150: 7.488845241 | C150: =IF(Lambda="",#REF!,B150) -> 7.488845241 | D150: 0 | E150: =IF(Lambda="",(#REF!-#REF!),(B150-D150)) -> 7.488845241
A151: 149 | B151: 7.599047921 | C151: =IF(Lambda="",#REF!,B151) -> 7.599047921 | D151: 0 | E151: =IF(Lambda="",(#REF!-#REF!),(B151-D151)) -> 7.599047921
A152: 150 | B152: 7.709660808 | C152: =IF(Lambda="",#REF!,B152) -> 7.709660808 | D152: 0 | E152: =IF(Lambda="",(#REF!-#REF!),(B152-D152)) -> 7.709660808
A153: 151 | B153: 7.82067685 | C153: =IF(Lambda="",#REF!,B153) -> 7.82067685 | D153: 0 | E153: =IF(Lambda="",(#REF!-#REF!),(B153-D153)) -> 7.82067685
A154: 152 | B154: 7.932089096 | C154: =IF(Lambda="",#REF!,B154) -> 7.932089096 | D154: 0 | E154: =IF(Lambda="",(#REF!-#REF!),(B154-D154)) -> 7.932089096
A155: 153 | B155: 8.043890693 | C155: =IF(Lambda="",#REF!,B155) -> 8.043890693 | D155: 0 | E155: =IF(Lambda="",(#REF!-#REF!),(B155-D155)) -> 8.043890693
A156: 154 | B156: 8.156074888 | C156: =IF(Lambda="",#REF!,B156) -> 8.156074888 | D156: 0 | E156: =IF(Lambda="",(#REF!-#REF!),(B156-D156)) -> 8.156074888
A157: 155 | B157: 8.268635022 | C157: =IF(Lambda="",#REF!,B157) -> 8.268635022 | D157: 0 | E157: =IF(Lambda="",(#REF!-#REF!),(B157-D157)) -> 8.268635022
A158: 156 | B158: 8.381564533 | C158: =IF(Lambda="",#REF!,B158) -> 8.381564533 | D158: 0 | E158: =IF(Lambda="",(#REF!-#REF!),(B158-D158)) -> 8.381564533
A159: 157 | B159: 8.494856954 | C159: =IF(Lambda="",#REF!,B159) -> 8.494856954 | D159: 0 | E159: =IF(Lambda="",(#REF!-#REF!),(B159-D159)) -> 8.494856954
A160: 158 | B160: 8.608505908 | C160: =IF(Lambda="",#REF!,B160) -> 8.608505908 | D160: 0 | E160: =IF(Lambda="",(#REF!-#REF!),(B160-D160)) -> 8.608505908
A161: 159 | B161: 8.722505113 | C161: =IF(Lambda="",#REF!,B161) -> 8.722505113 | D161: 0 | E161: =IF(Lambda="",(#REF!-#REF!),(B161-D161)) -> 8.722505113
A162: 160 | B162: 8.836848375 | C162: =IF(Lambda="",#REF!,B162) -> 8.836848375 | D162: 0 | E162: =IF(Lambda="",(#REF!-#REF!),(B162-D162)) -> 8.836848375
A163: 161 | B163: 8.951529592 | C163: =IF(Lambda="",#REF!,B163) -> 8.951529592 | D163: 0 | E163: =IF(Lambda="",(#REF!-#REF!),(B163-D163)) -> 8.951529592
A164: 162 | B164: 9.066542748 | C164: =IF(Lambda="",#REF!,B164) -> 9.066542748 | D164: 0 | E164: =IF(Lambda="",(#REF!-#REF!),(B164-D164)) -> 9.066542748
A165: 163 | B165: 9.181881914 | C165: =IF(Lambda="",#REF!,B165) -> 9.181881914 | D165: 0 | E165: =IF(Lambda="",(#REF!-#REF!),(B165-D165)) -> 9.181881914
A166: 164 | B166: 9.297541248 | C166: =IF(Lambda="",#REF!,B166) -> 9.297541248 | D166: 0 | E166: =IF(Lambda="",(#REF!-#REF!),(B166-D166)) -> 9.297541248
A167: 165 | B167: 9.413514992 | C167: =IF(Lambda="",#REF!,B167) -> 9.413514992 | D167: 0 | E167: =IF(Lambda="",(#REF!-#REF!),(B167-D167)) -> 9.413514992
A168: 166 | B168: 9.529797472 | C168: =IF(Lambda="",#REF!,B168) -> 9.529797472 | D168: 0 | E168: =IF(Lambda="",(#REF!-#REF!),(B168-D168)) -> 9.529797472
A169: 167 | B169: 9.646383097 | C169: =IF(Lambda="",#REF!,B169) -> 9.646383097 | D169: 0 | E169: =IF(Lambda="",(#REF!-#REF!),(B169-D169)) -> 9.646383097
A170: 168 | B170: 9.763266353 | C170: =IF(Lambda="",#REF!,B170) -> 9.763266353 | D170: 0 | E170: =IF(Lambda="",(#REF!-#REF!),(B170-D170)) -> 9.763266353
A171: 169 | B171: 9.880441813 | C171: =IF(Lambda="",#REF!,B171) -> 9.880441813 | D171: 0 | E171: =IF(Lambda="",(#REF!-#REF!),(B171-D171)) -> 9.880441813
A172: 170 | B172: 9.997904122 | C172: =IF(Lambda="",#REF!,B172) -> 9.997904122 | D172: 0 | E172: =IF(Lambda="",(#REF!-#REF!),(B172-D172)) -> 9.997904122
A173: 171 | B173: 10.11564801 | C173: =IF(Lambda="",#REF!,B173) -> 10.11564801 | D173: 0 | E173: =IF(Lambda="",(#REF!-#REF!),(B173-D173)) -> 10.11564801
A174: 172 | B174: 10.23366827 | C174: =IF(Lambda="",#REF!,B174) -> 10.23366827 | D174: 0 | E174: =IF(Lambda="",(#REF!-#REF!),(B174-D174)) -> 10.23366827
A175: 173 | B175: 10.35195979 | C175: =IF(Lambda="",#REF!,B175) -> 10.35195979 | D175: 0 | E175: =IF(Lambda="",(#REF!-#REF!),(B175-D175)) -> 10.35195979
A176: 174 | B176: 10.47051752 | C176: =IF(Lambda="",#REF!,B176) -> 10.47051752 | D176: 0 | E176: =IF(Lambda="",(#REF!-#REF!),(B176-D176)) -> 10.47051752
A177: 175 | B177: 10.58933649 | C177: =IF(Lambda="",#REF!,B177) -> 10.58933649 | D177: 0 | E177: =IF(Lambda="",(#REF!-#REF!),(B177-D177)) -> 10.58933649
A178: 176 | B178: 10.70841179 | C178: =IF(Lambda="",#REF!,B178) -> 10.70841179 | D178: 0 | E178: =IF(Lambda="",(#REF!-#REF!),(B178-D178)) -> 10.70841179
A179: 177 | B179: 10.8277386 | C179: =IF(Lambda="",#REF!,B179) -> 10.8277386 | D179: 0 | E179: =IF(Lambda="",(#REF!-#REF!),(B179-D179)) -> 10.8277386
A180: 178 | B180: 10.94731215 | C180: =IF(Lambda="",#REF!,B180) -> 10.94731215 | D180: 0 | E180: =IF(Lambda="",(#REF!-#REF!),(B180-D180)) -> 10.94731215
A181: 179 | B181: 11.06712775 | C181: =IF(Lambda="",#REF!,B181) -> 11.06712775 | D181: 0 | E181: =IF(Lambda="",(#REF!-#REF!),(B181-D181)) -> 11.06712775
A182: 180 | B182: 11.18718079 | C182: =IF(Lambda="",#REF!,B182) -> 11.18718079 | D182: 0 | E182: =IF(Lambda="",(#REF!-#REF!),(B182-D182)) -> 11.18718079
A183: 181 | B183: 11.3074667 | C183: =IF(Lambda="",#REF!,B183) -> 11.3074667 | D183: 2.34440778e-75 | E183: =IF(Lambda="",(#REF!-#REF!),(B183-D183)) -> 11.3074667
A184: 182 | B184: 11.42798101 | C184: =IF(Lambda="",#REF!,B184) -> 11.42798101 | D184: 2.176033128e-38 | E184: =IF(Lambda="",(#REF!-#REF!),(B184-D184)) -> 11.42798101
A185: 183 | B185: 11.54871928 | C185: =IF(Lambda="",#REF!,B185) -> 11.54871928 | D185: 5.947548056e-26 | E185: =IF(Lambda="",(#REF!-#REF!),(B185-D185)) -> 11.54871928
A186: 184 | B186: 11.66967715 | C186: =IF(Lambda="",#REF!,B186) -> 11.66967715 | D186: 1.115396491e-19 | E186: =IF(Lambda="",(#REF!-#REF!),(B186-D186)) -> 11.66967715
A187: 185 | B187: 11.79085034 | C187: =IF(Lambda="",#REF!,B187) -> 11.79085034 | D187: 6.971248487e-16 | E187: =IF(Lambda="",(#REF!-#REF!),(B187-D187)) -> 11.79085034
A188: 186 | B188: 11.91223461 | C188: =IF(Lambda="",#REF!,B188) -> 11.91223461 | D188: 2.482172334e-13 | E188: =IF(Lambda="",(#REF!-#REF!),(B188-D188)) -> 11.91223461
A189: 187 | B189: 12.03382579 | C189: =IF(Lambda="",#REF!,B189) -> 12.03382579 | D189: 1.706296999e-11 | E189: =IF(Lambda="",(#REF!-#REF!),(B189-D189)) -> 12.03382579
A190: 188 | B190: 12.15561976 | C190: =IF(Lambda="",#REF!,B190) -> 12.15561976 | D190: 4.17680428e-10 | E190: =IF(Lambda="",(#REF!-#REF!),(B190-D190)) -> 12.15561976
A191: 189 | B191: 12.27761248 | C191: =IF(Lambda="",#REF!,B191) -> 12.27761248 | D191: 5.121079635e-09 | E191: =IF(Lambda="",(#REF!-#REF!),(B191-D191)) -> 12.27761247
A192: 190 | B192: 12.39979995 | C192: =IF(Lambda="",#REF!,B192) -> 12.39979995 | D192: 3.861673072e-08 | E192: =IF(Lambda="",(#REF!-#REF!),(B192-D192)) -> 12.39979991
A193: 191 | B193: 12.52217824 | C193: =IF(Lambda="",#REF!,B193) -> 12.52217824 | D193: 2.041744008e-07 | E193: =IF(Lambda="",(#REF!-#REF!),(B193-D193)) -> 12.52217804
A194: 192 | B194: 12.64474348 | C194: =IF(Lambda="",#REF!,B194) -> 12.64474348 | D194: 8.262202654e-07 | E194: =IF(Lambda="",(#REF!-#REF!),(B194-D194)) -> 12.64474265
A195: =A194+1 -> 193 | B195: =Qavg*Q_4(4*A195*T/(S*_l^2),Lambda*_l/T) -> 12.76749184 | C195: =IF(Lambda="",#REF!,B195) -> 12.76749184 | D195: =IF(CutBackTime<A195,(Qavg-CutBackQ)*Q_4(4*(A195-CutBackTime)*T/(S*_l^2),Lambda*_l/T),0) -> 2.719470066e-06 | E195: =IF(Lambda="",(#REF!-#REF!),(B195-D195)) -> 12.76748912
A196: 194 | B196: 12.89041955 | C196: =IF(Lambda="",#REF!,B196) -> 12.89041955 | D196: 7.604962026e-06 | E196: =IF(Lambda="",(#REF!-#REF!),(B196-D196)) -> 12.89041195
A197: 195 | B197: 13.01352292 | C197: =IF(Lambda="",#REF!,B197) -> 13.01352292 | D197: 1.865764501e-05 | E197: =IF(Lambda="",(#REF!-#REF!),(B197-D197)) -> 13.01350426
A198: 196 | B198: 13.13679827 | C198: =IF(Lambda="",#REF!,B198) -> 13.13679827 | D198: 4.113729488e-05 | E198: =IF(Lambda="",(#REF!-#REF!),(B198-D198)) -> 13.13675713
A199: 197 | B199: 13.26024201 | C199: =IF(Lambda="",#REF!,B199) -> 13.26024201 | D199: 8.303568321e-05 | E199: =IF(Lambda="",(#REF!-#REF!),(B199-D199)) -> 13.26015897
A200: 198 | B200: 13.38385058 | C200: =IF(Lambda="",#REF!,B200) -> 13.38385058 | D200: 0.0001556711015 | E200: =IF(Lambda="",(#REF!-#REF!),(B200-D200)) -> 13.38369491
... 167 more rows
